Workbook

Sheet OptionConfig
B1: Id | C1: Info | D1: AddConditionID | E1: ShowType | F1: BehaviorType | G1: BehaviorTypeValues | H1: Reward | I1: JumpType | J1: JumpTypeValues | K1: NextEventId | L1: MissionEnd
B2: int | C2: string | D2: int | E2: int | F2: int | G2: mut,int#int,2 | H2: mut,int#int,1 | I2: int | J2: mut,int#int,2 | K2: int | L2: int
B3: 2 | C3: 3 | D3: 2 | E3: 3 | F3: 4 | G3: 4 | H3: 4 | I3: 2 | J3: 4 | K3: 3 | L3: 3
B4: 选项id | C4: 显示内容 | D4: 条件id | E4: 显示规则 | F4: 行为类型 | G4: 行为参数(foods表） | H4: 奖励组id | I4: 跳转类型 | J4: 跳转参数 | K4: 主界面跳转参数 | L4: 任务结束标志
A5: 默认值 | B5: 0 | C5: ="" ->  | D5: 0 | E5: 0 | F5: 0 | G5: null | H5: null | I5: 0 | J5: null | K5: null | L5: 0
A6: 正确性校对
A7: 校对值
B8: 100001 | C8: 确定 | E8: 1 | F8: 5 | G8: 0 | I8: 4
B9: 100002
B10: 100003 | C10: 点击继续 | E10: 1 | I10: 1 | J10: 100003
B11: 100004
B12: 100005 | C12: 点击继续 | E12: 1 | I12: 1 | J12: 100004
B13: 100006 | C13: 确定 | E13: 1 | I13: 1 | J13: 100005
B14: 100007 | C14: 点击继续 | E14: 1 | I14: 1 | J14: 100006
B15: 100008 | C15: 点击继续 | E15: 1 | I15: 1 | J15: 100007
B16: 100009 | C16: 点击继续 | E16: 1 | I16: 1 | J16: 100008
B17: 100010 | C17: 点击继续 | E17: 1 | I17: 1 | J17: 100009
B18: 100011 | C18: 点击继续 | E18: 1 | F18: 9 | G18: 1 | I18: 4
B19: 100012 | C19: 点击继续 | E19: 1 | F19: 1 | G19: 10001 | I19: 1 | J19: 100011
B20: 100013 | C20: 点击继续 | E20: 1 | F20: 13 | G20: 1 | I20: 1 | J20: 100012
B21: 100014 | C21: 点击继续 | E21: 1 | F21: 15 | G21: 100004 | I21: 4
B22: 100015 | C22: 不清除，为测试怪物添加回血被动 | E22: 1 | F22: 45 | G22: 0#10101|300103|101 | I22: 1 | J22: 100014
B23: 100016 | C23: 清除，为测试怪物添加减伤 | E23: 1 | F23: 45 | G23: 1#10101|300103|102 | I23: 1 | J23: 100014
B24: 100017 | C24: 战斗，测试用怪物 | E24: 1 | F24: 1 | G24: 300103 | I24: 1 | J24: 100014
B25: 100018 | C25: 离开 | E25: 1 | I25: 4
B26: 100019 | C26: 点击继续 | E26: 1 | F26: 15 | G26: 100006 | I26: 4
B27: 100020 | E27: 1 | I27: 4
B28: 100021 | C28: 点击继续 | E28: 1 | I28: 1 | J28: 100020
B29: 100022 | C29: 点击继续 | E29: 1 | I29: 1 | J29: 100021
B30: 100023 | C30: 你是谁？ | E30: 1 | I30: 1 | J30: 100022
B31: 100024 | C31: 点击继续 | E31: 1 | F31: 15 | G31: 100003 | I31: 4
B32: 100025
B33: 100026 | C33: 点击继续 | E33: 1 | I33: 4
B34: 100027 | C34: 点击继续 | E34: 1 | I34: 1 | K34: 100026
B35: 100028 | C35: 点击继续 | E35: 1 | I35: 1 | K35: 100027
B36: 100029 | C36: 点击继续 | E36: 1 | I36: 1 | K36: 100028
B37: 100030 | C37: 点击继续 | E37: 1 | I37: 1 | K37: 100029
B38: 100031 | C38: 点击继续 | E38: 1 | I38: 1 | K38: 100030
B39: 100032 | C39: 点击继续 | E39: 1 | I39: 4
B40: 100033 | C40: 点击继续 | E40: 1 | I40: 1 | K40: 100032
B41: 100034 | C41: 点击继续 | E41: 1 | I41: 4
B42: 100035 | C42: 点击继续 | E42: 1 | I42: 1 | J42: 100034
B43: 100036 | C43: 跳过 | E43: 1 | I43: 1 | J43: 100035
B44: 100037 | C44: 点击继续 | E44: 1 | I44: 1 | J44: 100035
B45: 100038 | C45: 跳过 | E45: 1 | I45: 1 | J45: 100035
B46: 100039 | C46: 战斗 | E46: 1 | F46: 1 | G46: 10110 | I46: 1 | J46: 100036
B47: 100040 | C47: 进度条 | E47: 1 | F47: 6 | G47: 2 | I47: 1 | J47: 100036
B48: 100041 | C48: 消耗道具 | D48: 1 | E48: 2 | F48: 2 | G48: 1503#1 | I48: 1 | J48: 100036
B49: 100042 | C49: 直接下一页 | E49: 1 | I49: 1 | J49: 100036
B50: 100043 | C50: 奖励组 | E50: 1 | H50: 700001 | I50: 1 | J50: 100037
B51: 100044 | C51: 生成点 | E51: 1 | F51: 30 | G51: 101#14#13#100006 | I51: 1 | J51: 100037
B52: 100045 | C52: 推任务 | E52: 1 | F52: 13 | G52: 2 | I52: 1 | J52: 100037
B53: 100046 | C53: 回到前面 | E53: 1 | I53: 1 | J53: 100014
B54: 100047 | C54: 点击继续 | E54: 1 | I54: 1 | J54: 100038
B55: 100048 | C55: 跳过 | E55: 1 | F55: 15 | G55: 100005 | I55: 4
B56: 100049 | C56: 点击继续 | E56: 1 | I56: 1 | J56: 100039
B57: 100050 | C57: 跳过 | E57: 1 | F57: 15 | G57: 100005 | I57: 4
B58: 100051 | C58: 点击继续 | E58: 1 | F58: 15 | G58: 100005 | I58: 4
B59: 100052 | C59: 点击继续 | E59: 1 | I59: 1 | J59: 100041
B60: 100053 | C60: 跳过 | E60: 1 | I60: 1 | J60: 100049
B61: 100054 | C61: 点击继续 | E61: 1 | I61: 1 | J61: 100042
B62: 100055 | C62: 跳过 | E62: 1 | I62: 1 | J62: 100049
B63: 100056 | C63: 点击继续 | E63: 1 | I63: 1 | J63: 100049
B64: 100057 | C64: 跳过 | E64: 1 | I64: 1 | J64: 100049
B65: 100058 | C65: 点击继续 | E65: 1 | I65: 1 | J65: 100044
B66: 100059 | C66: 跳过 | E66: 1 | F66: 9 | G66: 1 | I66: 4
B67: 100060 | C67: 点击继续 | E67: 1 | I67: 1 | J67: 100045
B68: 100061 | C68: 跳过 | E68: 1 | F68: 9 | G68: 1 | I68: 4
B69: 100062 | C69: 点击继续 | E69: 1 | F69: 9 | G69: 1 | I69: 4
B70: 100063 | C70: 跳过 | E70: 1 | F70: 9 | G70: 1 | I70: 4
B71: 100064 | C71: 点击继续 | E71: 1 | I71: 1
B72: 100065 | C72: 跳过 | E72: 1 | I72: 1
B73: 100066 | C73: 迎战妖兽 | E73: 1 | I73: 1
B74: 100067 | C74: 准备一下再来 | E74: 1 | I74: 4
B75: 100068 | C75: 点击继续 | E75: 1 | I75: 4
B76: 100069 | C76: 跳过 | E76: 1 | I76: 4
B77: 100070 | C77: 确定 | E77: 1 | I77: 1 | J77: 100043
B78: 100071 | C78: 点击继续 | E78: 1 | I78: 1
B79: 100072 | C79: 跳过 | E79: 1 | I79: 1
B80: 100073 | C80: 点击继续 | E80: 1 | I80: 1
B81: 100074 | C81: 跳过 | E81: 1 | I81: 1
B83: 101001 | C83: 点击继续 | E83: 1 | I83: 1 | J83: 101002
B84: 101002 | C84: 跳过 | E84: 1 | F84: 35 | G84: 101001|101#7#5#101002 | I84: 4
B85: 101003 | C85: 点击继续 | E85: 1 | I85: 1 | J85: 101003
B86: 101004 | C86: 跳过 | E86: 1 | F86: 35 | G86: 101001|101#7#5#101002 | I86: 4
B87: 101005 | C87: 点击继续 | E87: 1 | I87: 1 | J87: 101004
B88: 101006 | C88: 跳过 | E88: 1 | F88: 35 | G88: 101001|101#7#5#101002 | I88: 4
B89: 101007 | C89: 点击继续 | E89: 1 | I89: 1 | J89: 101005
B90: 101008 | C90: 跳过 | E90: 1 | F90: 35 | G90: 101001|101#7#5#101002 | I90: 4
B91: 101009 | C91: 点击继续 | E91: 1 | I91: 1 | J91: 101006
B92: 101010 | C92: 跳过 | E92: 1 | F92: 35 | G92: 101001|101#7#5#101002 | I92: 4
B93: 101011 | C93: 点击继续 | E93: 1 | I93: 1 | J93: 101007
B94: 101012 | C94: 跳过 | E94: 1 | F94: 35 | G94: 101001|101#7#5#101002 | I94: 4
B95: 101013 | C95: 点击继续 | E95: 1 | I95: 1 | J95: 101008
B96: 101014 | C96: 跳过 | E96: 1 | F96: 35 | G96: 101001|101#7#5#101002 | I96: 4
B97: 101015 | C97: 点击继续 | E97: 1 | I97: 1 | J97: 101009
B98: 101016 | C98: 跳过 | E98: 1 | F98: 35 | G98: 101001|101#7#5#101002 | I98: 4
B99: 101017 | C99: 点击继续 | E99: 1 | F99: 13 | G99: 2 | I99: 1 | J99: 101010
B100: 101018 | C100: 跳过 | E100: 1 | F100: 35 | G100: 101001|101#7#5#101002 | I100: 4
B101: 101019 | C101: 点击继续 | E101: 1 | I101: 1 | J101: 101011
B102: 101020 | C102: 跳过 | E102: 1 | F102: 17 | G102: 101001|101#7#5#101002 | I102: 4
B103: 101021 | C103: 点击继续 | E103: 1 | F103: 17 | G103: 101001|101#7#5#101002 | I103: 4
B104: 101022 | C104: 跳过 | E104: 1 | F104: 17 | G104: 101001|101#7#5#101002 | I104: 4
B105: 101023 | C105: 点击继续 | E105: 1 | I105: 1 | J105: 101013
B106: 101024 | C106: 跳过 | E106: 1 | I106: 1 | J106: 101015
B107: 101025 | C107: 点击继续 | E107: 1 | I107: 1 | J107: 101014
B108: 101026 | C108: 跳过 | E108: 1 | I108: 1 | J108: 101015
B109: 101027 | C109: 点击继续 | E109: 1 | I109: 1 | J109: 101015
B110: 101028 | C110: 跳过 | E110: 1 | I110: 1 | J110: 101015
B111: 101029 | C111: 点击继续 | E111: 1 | F111: 1 | G111: 10101 | I111: 1 | J111: 101016
B112: 101030 | C112: 跳过 | E112: 1 | F112: 32 | G112: 10101#101002|101#2#15#101004|101#11#9#101003 | I112: 4
B113: 101031 | C113: 点击继续 | E113: 1 | I113: 1 | J113: 101017
B114: 101032 | C114: 跳过 | E114: 1 | F114: 35 | G114: 101002|101#2#15#101004|101#11#9#101003 | I114: 4
B115: 101033 | C115: 点击继续 | E115: 1 | F115: 11 | G115: 2|101#2#15#101004 | I115: 1 | J115: 101018
B116: 101034 | C116: 跳过 | E116: 1 | F116: 35 | G116: 101002|101#2#15#101004|101#11#9#101003 | I116: 4
B117: 101035 | C117: 点击继续 | E117: 1 | I117: 1 | J117: 101019
B118: 101036 | C118: 跳过 | E118: 1 | F118: 17 | G118: 101002|101#2#15#101004|101#11#9#101003 | I118: 4
B119: 101037 | C119: 点击继续 | E119: 1 | I119: 1 | J119: 101020
B120: 101038 | C120: 跳过 | E120: 1 | F120: 17 | G120: 101002|101#2#15#101004|101#11#9#101003 | I120: 4
B121: 101039 | C121: 点击继续 | E121: 1 | I121: 1 | J121: 101021
B122: 101040 | C122: 跳过 | E122: 1 | F122: 17 | G122: 101002|101#2#15#101004|101#11#9#101003 | I122: 4
B123: 101041 | C123: 点击继续 | E123: 1 | I123: 1 | J123: 101022
B124: 101042 | C124: 跳过 | E124: 1 | F124: 17 | G124: 101002|101#2#15#101004|101#11#9#101003 | I124: 4
B125: 101043 | C125: 点击继续 | E125: 1 | F125: 17 | G125: 101002|101#2#15#101004|101#11#9#101003 | I125: 4
B126: 101044 | C126: 跳过 | E126: 1 | F126: 17 | G126: 101002|101#2#15#101004|101#11#9#101003 | I126: 4
B127: 101045 | C127: 点击继续 | E127: 1 | I127: 1 | J127: 101024
B128: 101046 | C128: 跳过 | E128: 1 | F128: 35 | G128: 101003|101#6#18#101006|101#2#10#101006 | I128: 4
B129: 101047 | C129: 点击继续 | E129: 1 | I129: 1 | J129: 101025
B130: 101048 | C130: 跳过 | E130: 1 | F130: 35 | G130: 101003|101#6#18#101006|101#2#10#101006 | I130: 4
B131: 101049 | C131: 点击继续 | E131: 1 | I131: 1 | J131: 101026
B132: 101050 | C132: 跳过 | E132: 1 | F132: 35 | G132: 101003|101#6#18#101006|101#2#10#101006 | I132: 4
B133: 101051 | C133: 点击继续 | E133: 1 | I133: 1 | J133: 101027
B134: 101052 | C134: 跳过 | E134: 1 | F134: 35 | G134: 101003|101#6#18#101006|101#2#10#101006 | I134: 4
B135: 101053 | C135: 点击继续 | E135: 1 | I135: 1 | J135: 101028
B136: 101054 | C136: 跳过 | E136: 1 | F136: 35 | G136: 101003|101#6#18#101006|101#2#10#101006 | I136: 4
B137: 101055 | C137: 点击继续 | E137: 1 | I137: 1 | J137: 101029
B138: 101056 | C138: 跳过 | E138: 1 | F138: 35 | G138: 101003|101#6#18#101006|101#2#10#101006 | I138: 4
B139: 101057 | C139: 点击继续 | E139: 1 | F139: 13 | G139: 2 | I139: 1 | J139: 101030
B140: 101058 | C140: 跳过 | E140: 1 | F140: 35 | G140: 101003|101#6#18#101006|101#2#10#101006 | I140: 4
B141: 101059 | C141: 点击继续 | E141: 1 | I141: 1 | J141: 101031
B142: 101060 | C142: 跳过 | E142: 1 | F142: 17 | G142: 101003|101#6#18#101006|101#2#10#101006 | I142: 4
B143: 101061 | C143: 点击继续 | E143: 1 | F143: 17 | G143: 101003|101#6#18#101006|101#2#10#101006 | I143: 4
B144: 101062 | C144: 跳过 | E144: 1 | F144: 17 | G144: 101003|101#6#18#101006|101#2#10#101006 | I144: 4
B145: 101063 | C145: 点击继续 | E145: 1 | I145: 1 | J145: 101033
B146: 101064 | C146: 跳过 | E146: 1 | I146: 1 | J146: 101033
B147: 101065 | C147: 点击继续 | E147: 1 | F147: 1 | G147: 10102 | I147: 1 | J147: 101034
B148: 101066 | C148: 跳过 | E148: 1 | F148: 20 | G148: 10102#101004 | I148: 4
B149: 101067 | C149: 点击继续 | E149: 1 | I149: 1 | J149: 101035
B150: 101068 | C150: 跳过 | E150: 1 | F150: 15 | G150: 101004 | I150: 4
B151: 101069 | C151: 点击继续 | E151: 1 | I151: 1 | J151: 101036
B152: 101070 | C152: 跳过 | E152: 1 | F152: 15 | G152: 101004 | I152: 4
B153: 101071 | C153: 点击继续 | E153: 1 | I153: 1 | J153: 101037
B154: 101072 | C154: 跳过 | E154: 1 | F154: 15 | G154: 101004 | I154: 4
B155: 101073 | C155: 点击继续 | E155: 1 | I155: 1 | J155: 101038
B156: 101074 | C156: 跳过 | E156: 1 | F156: 15 | G156: 101004 | I156: 4
B157: 101075 | C157: 点击继续 | E157: 1 | F157: 15 | G157: 101004 | I157: 4
B158: 101076 | C158: 跳过 | E158: 1 | F158: 15 | G158: 101004 | I158: 4
B159: 101077 | C159: 点击继续 | E159: 1 | I159: 1 | J159: 101040
B160: 101078 | C160: 跳过 | E160: 1 | F160: 9 | G160: 2 | I160: 4
B161: 101079 | C161: 点击继续 | E161: 1 | I161: 1 | J161: 101041
B162: 101080 | C162: 跳过 | E162: 1 | F162: 9 | G162: 2 | I162: 4
B163: 101081 | C163: 点击继续 | E163: 1 | F163: 6 | G163: 2 | I163: 1 | J163: 101055
B164: 101082 | C164: 跳过 | E164: 1 | F164: 9 | G164: 2 | I164: 4
B165: 101083 | C165: 点击继续 | E165: 1 | I165: 1 | J165: 101043
B166: 101084 | C166: 跳过 | E166: 1 | F166: 9 | G166: 2 | I166: 4
B167: 101085 | C167: 点击继续 | E167: 1 | I167: 1 | J167: 101044
B168: 101086 | C168: 跳过 | E168: 1 | F168: 9 | G168: 2 | I168: 4
B169: 101087 | C169: 点击继续 | E169: 1 | I169: 1 | J169: 101045
B170: 101088 | C170: 跳过 | E170: 1 | F170: 9 | G170: 2 | I170: 4
B171: 101089 | C171: 点击继续 | E171: 1 | I171: 1 | J171: 101046
B172: 101090 | C172: 跳过 | E172: 1 | F172: 9 | G172: 2 | I172: 4
B173: 101091 | C173: 点击继续 | E173: 1 | F173: 9 | G173: 2 | I173: 4
B174: 101092 | C174: 跳过 | E174: 1 | F174: 9 | G174: 2 | I174: 4
B175: 101093 | C175: 点击继续 | E175: 1 | F175: 1 | G175: 10103 | I175: 1 | J175: 101048
B176: 101094 | C176: 跳过 | E176: 1 | F176: 32 | G176: 10103#101006|101#11#9#101005 | I176: 4
B177: 101095 | C177: 点击继续 | E177: 1 | F177: 35 | G177: 101006|101#11#9#101005 | I177: 4
B178: 101096 | C178: 跳过 | E178: 1 | F178: 35 | G178: 101006|101#11#9#101005 | I178: 4
B179: 101097 | C179: 点击继续 | E179: 1 | F179: 15 | G179: 101008 | H179: 40001 | I179: 4
B180: 101098 | C180: 点击继续 | E180: 1 | F180: 15 | G180: 101009 | H180: 40001 | I180: 4
B181: 101099 | C181: 点击继续 | E181: 1 | F181: 15 | G181: 101010 | H181: 40001 | I181: 4
B182: 101100 | C182: 点击继续 | E182: 1 | F182: 15 | G182: 101011 | H182: 40001 | I182: 4
B183: 101101 | C183: 点击继续 | E183: 1 | F183: 15 | G183: 101012 | H183: 40001 | I183: 4
B184: 101102 | C184: 点击继续 | E184: 1 | I184: 1 | J184: 101042
B185: 101103 | C185: 跳过 | E185: 1 | F185: 9 | G185: 2 | I185: 4
B186: 101104 | C186: 点击继续 | E186: 1 | I186: 1 | J186: 101057
B187: 101105 | C187: 跳过 | E187: 1 | I187: 1 | J187: 101059
B188: 101106 | C188: 点击继续 | E188: 1 | I188: 1 | J188: 101058
B189: 101107 | C189: 跳过 | E189: 1 | I189: 1 | J189: 101059
B190: 101108 | C190: 点击继续 | E190: 1 | I190: 1 | J190: 101059
B191: 101109 | C191: 跳过 | E191: 1 | I191: 1 | J191: 101059
B192: 101110 | C192: 掩埋尸体 | E192: 1 | F192: 15 | G192: 101014 | H192: 55013 | I192: 4
B193: 101111 | C193: 搜索尸体 | E193: 1 | F193: 15 | G193: 101014 | H193: 55012 | I193: 4
B194: 101112 | C194: 点击继续 | E194: 1 | F194: 15 | G194: 101015 | H194: 40001 | I194: 4
B195: 101113 | C195: 点击继续 | E195: 1 | F195: 15 | G195: 101018 | H195: 40001 | I195: 4
B196: 101114 | C196: 点击继续 | E196: 1 | F196: 1 | G196: 10104 | I196: 4
B197: 101115 | C197: 跳过 | E197: 1 | I197: 4
B198: 102001 | C198: 点击继续 | E198: 1 | I198: 1 | J198: 102002
B199: 102002 | C199: 跳过 | E199: 1 | I199: 1 | J199: 102082
B200: 102003 | C200: 去看热闹 | E200: 1 | I200: 1 | J200: 102003
B201: 102004 | C201: 暂时离开 | E201: 1 | I201: 4 | J201: 102082
... 7696 more rows

Sheet OptionConfig-行为类型
A1: 编号 | B1: 描述 | C1: 参数 | D1: 具体效果举例
A2: 1 | B2: 战斗 | C2: 怪物组id | D2: 与怪物组id为10101的怪物战斗
A3: 2 | B3: 消耗物品 | C3: 物品id#物品数量 | D3: 采矿时会消耗1个镐头
A4: 3 | B4: 侦察 | C4: 照妖镜id#数量 | D4: 战斗之前可以消耗1个照妖镜进行侦查
A5: 5 | B5: 行动到某张地图某坐标点 | C5: 0代表为主城 地图id#x坐标#y坐标 | D5: 传送到指定地图的指定坐标点（不输入地图id和坐标而输入0，即为回主界面）
A6: 6 | B6: 进度条 | C6: 读条时间#类型 | D6: 事件点中某两个步骤之间会出现进度条。
A7: 7 | B7: 讨债类型(从两组中各拿出几个，随机刷在指定位置) | C7: A组数量#B组数量|A组事件点id#...|B组事件点id#...|位置#位置#...(位置是x*256+y)
A8: 8 | B8: 吃buff（移动屏幕buff不能用跳转类型6） | C8: buff id | D8: 玩家全队获得一个buff
A9: 9 | B9: 完成任务往下推一步并销毁当前地图点 | C9: 任务id | D9: 触发后，先推进一步任务，然后销毁触发时的地图点
A10: 10 | B10: 先推一步任务，生成新的事件点，监听杀怪数量，每次击杀怪物会推一步任务，直到杀够指定数量 | C10: 怪物组id#num|地图id#x坐标#y坐标#地图点id|地图id#x坐标#y坐标#地图点id|… | D10: 触发后，先推一步任务，在指定地图的指定位置生成新的地图点。然后监听打怪数量，每次打怪胜利推一步任务，直到打够num个怪物。
A11: 11 | B11: 完成任务往下推一步并开启新的地图点(未开启前不显示），不销毁地图点 | C11: 任务id|地图id#x坐标#y坐标#地图点id|地图id#x坐标#y坐标#地图点id|... | D11: 触发后，先推进一步任务，然后在指定地图的指定地点生成新的地图点。
A12: 13 | B12: 完成任务往下推一步，不销毁地图点 | C12: 任务id | D12: 触发后推进一步任务。
A13: 14 | B13: 完成任务往下推一步并消耗物品，不摧毁地图点 | C13: 任务id|物品id#物品数量 | D13: 触发后，消耗指定道具，推进一步任务。
A14: 15 | B14: 销毁地图点 | C14: 地图点id#地图点id#… | D14: 销毁同一地图中与指定id相同的所有地图点。
A15: 16 | B15: 消耗道具并销毁地图点 | C15: 道具id#num|地图点id#地图点id#… | D15: 消耗指定道具，销毁同一地图中与指定id相同的所有地图点。
A16: 17 | B16: 摧毁指定地图点，开启新的地图点。 | C16: 地图点id#地图点id#...|地图id#x坐标#y坐标#地图点id|地图id#x坐标#y坐标#地图点id | D16: 触发后，先推进一步任务，销毁同一地图中与指定id相同的所有地图点，在指定地图的指定位置生成新的地图点。
A17: 18 | B17: 完成任务往下推一步，战斗并销毁指定地图点 | C17: 任务id#怪物组id#地图点id | D17: 触发后，先推进一步任务，与指定id的怪物组战斗，战斗胜利后销毁同一地图中与指定id相同的所有地图点。
A18: 19 | B18: 完成任务往下推一步，行动到某张地图某坐标点，不摧毁地图点 | C18: 任务id#地图id#x坐标#y坐标（不输入地图id和坐标而输入0代表回主城） | D18: 触发后，先推进一步任务，然后传送到指定地图的指定坐标点。（不输入地图id和坐标而输入0，即为回主界面）
A19: 20 | B19: 战斗并销毁指定地图点 | C19: 怪物组id#地图点id | D19: 与指定id的怪物组战斗，战斗胜利后销毁同一地图中与指定id相同的所有地图点。
A20: 22 | B20: 完成任务往下推一步，行动到某张地图某坐标点，摧毁指定地图点 | C20: 任务id#销毁地图点id#地图id#x坐标#y坐标 | D20: 触发后，先推进一步任务，销毁同一地图中与指定id相同的所有地图点，然后传送到指定地图的指定坐标点。
A21: 23 | B21: 第一次触发时，完成任务往下推一步。 | C21: 任务id | D21: 触发后，推进一步任务，再次触发不再推进。
A22: 24 | B22: 服务器跳转地图点到指定状态，客户端不读取新事件 | C22: 地图点id#新事件id|地图点id#新事件id|... | D22: 服务器跳转与指定id相同的所有地图点至指定id的EventPoint
A23: 25 | B23: 完成任务往下推一步，销毁当前地图点，服务器跳转地图点到指定状态，客户端不读取新事件 | C23: 任务id#地图点id#新事件id | D23: 触发后，先推进一步任务，然后销毁触发时的地图点，服务器跳转与指定id相同的所有地图点至指定id的EventPoint
A24: 26 | B24: 接受任务（主线支线都有可能） | C24: 任务id… | D24: 触发后，接受指定id的任务，刷新任务显示
A25: 27 | B25: 开启新的驿馆聊天 | C25: 任务id… | D25: 触发后，在主界面的驿馆位置生成任务图标，点击任务图标触发任务剧情。
A26: 28 | B26: 消耗行动力 | C26: num | D26: 触发后，消耗num的行动力
A27: 29 | B27: 消耗道具并销毁当前地图点 | C27: 物品id#物品数量 | D27: 触发后，消耗指定id的物品指定数量，销毁触发时的地图点
A28: 30 | B28: 开启新的地图点 | C28: 地图id#x坐标#y坐标#地图点id|…
A29: 32 | B29: 推任务，战斗，删除指定地图点，生成新的事件点。 | C29: 怪物组id#地图点id|地图id#x坐标#y坐标#地图点id|地图id#x坐标#y坐标#地图点id|… | D29: 与指定id的怪物组战斗，战斗胜利后推任务，销毁同一地图中与指定id相同的所有地图点，在指定地图的指定位置生成新的地图点。。
A30: 33 | B30: 战斗，删除指定地图点，生成新的事件点。 | C30: 怪物组id#地图点id|地图id#x坐标#y坐标#地图点id|地图id#x坐标#y坐标#地图点id|… | D30: 与指定id的怪物组战斗，战斗胜利后销毁同一地图中与指定id相同的所有地图点，在指定地图的指定位置生成新的地图点。。
A31: 34 | B31: 获得buff，删除指定地图点（移动屏幕buff不能用跳转类型6） | C31: buffid#地图点id | D31: 触发后，玩家全队获得一个buff，随后销毁同一地图中与指定id相同的所有地图点
A32: 35 | B32: 推任务，删除指定地图点，生成新的事件点。 | C32: 地图点id|地图id#x坐标#y坐标#地图点id|地图id#x坐标#y坐标#地图点id… | D32: 触发后，先推进一步任务，销毁同一地图中与指定id相同的所有地图点，在指定地图的指定位置生成新的地图点。
A33: 36 | B33: 推任务，消耗道具，删除指定地图点 | C33: 地图点id|物品id#物品数量|物品id#物品数量… | D33: 触发后，先推进一步任务，消耗指定id的物品指定数量，销毁同一地图中与指定id相同的所有地图点
A34: 37 | B34: 消耗道具，获得buff（移动屏幕buff不能用跳转类型6） | C34: 物品id#物品数量#buffid | D34: 触发后，消耗指定id的物品指定数量，玩家全队获得一个buff
A35: 38 | B35: 战斗，服务器跳转地图点到指定状态，客户端不读取新事件 | C35: 怪物组id|地图点id#新事件id|地图点id#新事件id|… | D35: 与指定怪物组战斗，不论是否胜利，服务器跳转与指定id相同的所有地图点至指定id的EventPoint
A36: 39 | B36: 战斗，推任务，生成新的事件点。 | C36: 怪物组id|地图id#x坐标#y坐标#地图点id|地图id#x坐标#y坐标#地图点id|… | D36: 与指定id的怪物组战斗，战斗胜利后推任务，在指定地图的指定位置生成新的地图点。
A37: 40 | B37: 推任务，获得buff，删除指定地图点，生成新的事件点 | C37: buffid|地图点id#地图点id#...|地图id#x坐标#y坐标#地图点id|地图id#x坐标#y坐标#地图点id|… | D37: 触发后，先推进一步任务，玩家全队获得一个buff，销毁同一地图中与指定id相同的所有地图点，在指定地图的指定位置生成新的地图点。
A38: 41 | B38: 战斗（战斗的胜负不影响后续跳转和奖励等） | C38: 怪物组id | D38: 与指定id的怪物组战斗，不论战斗胜负都会继续后面的操作。
A39: 42 | B39: 进入下一层（试炼专用） | D39: 试炼副本中使用，前往下一层
A40: 43 | B40: 保存商店（试炼专用） | D40: 试炼副本中使用，保存当前遇到的buff点或商店
A41: 44 | B41: 服务器跳转地图点到指定状态，客户端不读取新事件，删除指定事件点 | C41: 删除事件点id#事件点id#...|地图点id#新事件id|地图点id#新事件id|... | D41: 服务器跳转与指定id相同的所有地图点至指定id的EventPoint,随后销毁同一地图中与指定id相同的所有地图点
A42: 45 | B42: 战斗，为地图中所有指定怪物组添加指定被动技能 | C42: 是否清空（0否1是）#战斗怪物组id|怪物组id#怪物组id#...|技能id#技能id#... | D42: 与指定怪物组战斗，胜利后为所有指定怪物添加被动技能，若需要清空，则在添加被动技能前先清除指定怪物的所有被动技能
A43: 46 | B43: 删除当前地图点 | D43: 触发后，销毁触发时的地图点
A44: 47 | B44: 开启地图并传送（无尽专用） | C44: 地图id
A45: 48 | B45: 战斗，进入刷新倒计时 | C45: 怪物组id#刷新时间 | D45: 与指定怪物组战斗，战斗胜利后开始进入刷新倒计时。
A46: 49 | B46: 进入刷新倒计时 | C46: 刷新时间 | D46: 进入刷新倒计时。
A47: 50 | B47: 进入下一层，概率进入奖励层（试炼专用） | D47: 进入试炼副本奖励层
A48: 51 | B48: 保存buff效果（试炼专用）并删除当前地图点 | C48: buffid

Sheet Sheet1
